bitfinex-derivatives/quotes_SOLF0:USTF0_20250215
["timestamp","ask_amount","ask_price","bid_price","bid_amount"]
[1739580459469,0.03746693,197.82,197.8,5.0546]
[1739580461465,0.03746693,197.82,197.78,5.08860427]
[1739580462367,0.03746693,197.82,197.79,5.055]
[1739580462968,0.03746693,197.82,197.81,5.0546]
[1739580463170,0.03746693,197.82,197.78,0.03350427]
[1739580463671,0.03746693,197.82,197.78,7.98386078]
[1739580463870,0.03746693,197.82,197.79,5.055]
[1739580464371,0.03746693,197.82,197.78,7.98386078]
[1739580464568,0.03746693,197.82,197.78,5.08880427]
[1739580465870,0.03746693,197.82,197.78,0.03350427]
[1739580466376,0.03746693,197.82,197.81,5.0546]
[1739580475978,0.03746693,197.82,197.67,48.4941431]
[1739580475979,7.98782344,197.82,197.67,7.0311088]
[1739580476184,7.95035651,197.7,197.67,7.0311088]
[1739580477175,7.98312253,197.7,197.67,7.07009072]
[1739580477676,0.03276602,197.7,197.67,7.07009072]
[1739580478477,0.03276602,197.7,197.67,0.03898192]
[1739580483180,5.09016602,197.7,197.67,0.03898192]
[1739580483384,0.03276602,197.7,197.61,5.0597]
[1739580483781,5.0581,197.68,197.59,12.44147167]
[1739580484085,12.44147167,197.71,197.62,5.0593]
[1739580484478,0.03528864,197.68,197.65,0.03604127]
[1739580486679,12.47676031,197.68,197.56,12.44147167]
[1739580486884,12.44147167,197.68,197.56,12.44147167]
[1739580487186,5.0584,197.66,197.56,12.44147167]
[1739580487788,0.03394301,197.63,197.59,0.03475039]
[1739580488088,4.301e-05,197.63,197.59,12.47622206]
[1739580488286,4.301e-05,197.63,197.62,5.0594]
[1739580488990,4.7552,197.73,197.7,5.0573]
[1739580489185,4.7552,197.73,197.65,12.44147167]
[1739580489791,4.7552,197.73,197.69,5.0576]
[1739580489989,4.7552,197.73,197.65,12.44147167]
[1739580490189,4.79256687,197.73,197.7,5.0573]
[1739580490487,4.79256687,197.73,197.69,0.03303889]
[1739580490787,9.84926687,197.73,197.69,0.03303889]
[1739580490984,4.79256687,197.73,197.62,12.44147167]
[1739580491188,4.79256687,197.73,197.59,12.44147167]
[1739580491389,5.0579,197.69,197.63,5.0589]
[1739580491979,5.0579,197.69,197.63,5.059]
[1739580492186,0.03793818,197.68,197.64,0.03308685]
[1739580493189,5.09583818,197.68,197.64,0.03308685]
[1739580493693,5.09583818,197.68,197.63,5.0589]
[1739580494995,5.09583818,197.68,197.64,0.03546127]
[1739580495888,0.03793818,197.68,197.67,5.0581]
[1739580498087,3.818e-05,197.68,197.67,5.0581]
[1739580500997,3.818e-05,197.68,197.66,5.0584]
[1739580501197,3.818e-05,197.68,197.65,14.06587167]
[1739580502301,3.818e-05,197.68,197.65,12.44147167]
[1739580504306,3.818e-05,197.68,197.64,5.09416127]
[1739580504702,3.818e-05,197.68,197.64,0.03546127]
[1739580507104,3.818e-05,197.68,197.65,12.44147167]
[1739580507308,3.818e-05,197.68,197.67,5.0581]
[1739580517813,3.818e-05,197.68,197.67,13.01529043]
[1739580529621,3.818e-05,197.68,197.67,7.95719043]
[1739580531034,3.818e-05,197.68,197.67,13.01529043]
[1739580535537,5.0559,197.76,197.72,5.0567]
[1739580536339,5.0573,197.71,197.67,13.01509043]
[1739580536740,5.09412777,197.71,197.67,13.04895493]
[1739580537138,0.03682777,197.71,197.67,7.99105493]
[1739580537844,0.03682777,197.71,197.7,5.0574]
[1739580538338,0.03682777,197.71,197.69,13.01479043]
[1739580539144,0.03682777,197.71,197.69,7.95719043]
[1739580539347,15.17,197.69,197.52,21.09332641]
[1739580539544,7.95719043,197.6,197.52,29.05051684]
[1739580539746,7.95719043,197.6,197.52,21.09332641]
[1739580540546,0.03803788,197.58,197.55,0.0338826]
[1739580541341,13.05572831,197.58,197.55,0.0338826]
[1739580541541,7.99522831,197.58,197.55,0.0338826]
[1739580541741,0.03803788,197.58,197.55,0.0338826]
[1739580545248,5.0607,197.57,197.55,0.0338826]
[1739580547047,12.49679444,197.58,197.43,12.45875656]
[1739580547248,12.45875656,197.58,197.43,12.45875656]
[1739580547447,5.061,197.56,197.43,12.45875656]
[1739580548046,5.0612,197.55,197.43,12.45875656]
[1739580548342,0.03202188,197.51,197.48,0.03326535]
[1739580548552,0.03202188,197.51,197.5,5.0625]
[1739580551156,3.1275,197.6,197.55,5.0611]
[1739580551951,8.1874,197.6,197.54,5.0614]
[1739580552151,12.45875656,197.64,197.49,14.05225656]
[1739580552348,0.03388575,197.59,197.56,5.0608]
[1739580552549,0.03388575,197.59,197.55,0.03398983]
[1739580555551,0.03388575,197.59,197.56,5.0609]
[1739580556559,0.03388575,197.59,197.55,0.03398983]
[1739580556755,0.03388575,197.59,197.57,5.0607]
[1739580557060,0.03388575,197.59,197.55,0.03398983]
[1739580558254,0.03388575,197.59,197.56,5.0607]
[1739580558458,0.03388575,197.59,197.55,0.03398983]
[1739580560056,0.03388575,197.59,197.56,5.0609]
[1739580560855,0.03388575,197.59,197.55,0.03398983]
[1739580562360,0.03388575,197.59,197.55,5.09518983]
[1739580562757,0.03388575,197.59,197.55,0.03398983]
[1739580563360,5.0606,197.58,197.55,0.03398983]
[1739580563556,7.97356584,197.57,197.55,0.03398983]
[1739580564657,5.0609,197.56,197.55,0.03398983]
[1739580567760,5.0609,197.56,197.47,7.97356584]
[1739580567961,7.97356584,197.54,197.47,7.97356584]
[1739580568560,7.97356584,197.56,197.47,7.97356584]
[1739580568763,7.97356584,197.59,197.51,7.97356584]
[1739580569065,0.03881069,197.53,197.51,7.97356584]
[1739580569361,7.97356584,197.59,197.54,5.0612]
[1739580569660,7.97356584,197.59,197.42,4.7642]
[1739580569661,7.97356584,197.63,197.55,7.97356584]
[1739580569861,7.97356584,197.63,197.55,8.00823892]
[1739580570060,0.03709143,197.61,197.55,8.00823892]
[1739580571063,0.03709143,197.61,197.57,7.97356584]
[1739580571862,0.03709143,197.61,197.58,5.0603]
[1739580572065,0.03709143,197.61,197.57,7.97356584]
[1739580572266,7.97356584,197.69,197.62,5.0594]
[1739580572461,7.97356584,197.71,197.63,7.97356584]
[1739580572660,10.59134521,197.72,197.65,7.97356584]
[1739580573062,13.03016584,197.73,197.65,7.97356584]
[1739580573264,7.97356584,197.71,197.65,7.97356584]
[1739580573564,8.00815777,197.71,197.67,0.03778254]
[1739580574360,13.06525777,197.71,197.67,0.03778254]
[1739580574561,8.00815777,197.71,197.67,0.03778254]
[1739580575168,5.0574,197.7,197.67,0.03778254]
[1739580575363,8.00815777,197.71,197.67,0.03778254]
[1739580575660,0.03459193,197.71,197.67,0.03778254]
[1739580576263,5.0574,197.7,197.67,0.03778254]
[1739580576663,5.0579,197.68,197.67,0.03778254]
[1739580576958,0.03459193,197.71,197.67,0.03778254]
[1739580577266,5.09179193,197.71,197.67,0.03778254]
[1739580577668,0.03459193,197.71,197.67,0.03778254]
[1739580578666,5.0574,197.7,197.67,0.03778254]
[1739580581371,0.03459193,197.71,197.67,5.09568254]
[1739580581671,0.03459193,197.71,197.67,0.03778254]
[1739580584872,5.09189193,197.71,197.67,0.03778254]
[1739580586072,5.0574,197.7,197.67,0.03778254]
[1739580586869,5.09169193,197.71,197.67,0.03778254]
[1739580588367,5.09169193,197.71,197.67,5.09588254]
[1739580589071,5.09169193,197.71,197.67,0.03778254]
[1739580589562,0.03459193,197.71,197.67,0.03778254]
[1739580590570,5.09189193,197.71,197.67,0.03778254]
[1739580592071,5.0574,197.7,197.67,0.03778254]
[1739580593071,5.0578,197.69,197.67,0.03778254]
[1739580593671,5.0579,197.68,197.67,0.03778254]
[1739580604883,7.96308118,197.69,197.67,0.03778254]
[1739580605780,5.0579,197.68,197.67,0.03778254]
[1739580606874,7.99767311,197.71,197.67,0.03778254]
[1739580607683,5.0577,197.69,197.67,0.03778254]
[1739580608081,7.99767311,197.71,197.67,0.03778254]
[1739580608379,0.03459193,197.71,197.67,8.00086372]
[1739580609082,0.03459193,197.71,197.68,5.0578]
[1739580609584,0.03459193,197.71,197.67,8.00086372]
[1739580609585,0.03459193,197.71,197.67,0.03778254]
[1739580611187,5.0574,197.7,197.67,0.03778254]
[1739580611386,0.03459193,197.71,197.67,8.00086372]
[1739580613090,0.03459193,197.71,197.7,5.0574]
[1739580613584,0.03459193,197.71,197.69,5.0576]
[1739580613893,0.03459193,197.71,197.67,8.00086372]
[1739580614089,0.03459193,197.71,197.67,0.03778254]
[1739580614290,5.09179193,197.71,197.67,5.09588254]
[1739580615091,5.09179193,197.71,197.68,5.0578]
[1739580615390,0.03459193,197.71,197.68,5.0578]
[1739580616595,5.09179193,197.71,197.68,5.0578]
[1739580616892,5.09179193,197.71,197.67,5.09588254]
[1739580618196,5.0579,197.68,197.67,0.03778254]
[1739580623796,7.99767311,197.71,197.67,0.03778254]
[1739580623993,0.03459193,197.71,197.67,0.03778254]
[1739580624195,0.03459193,197.71,197.67,8.00086372]
[1739580624587,0.03459193,197.71,197.7,5.0574]
[1739580626292,147.26434205,197.77,197.74,5.0562]
[1739580626498,136.67299684,197.77,197.73,7.96308118]
[1739580627096,13.01828118,197.79,197.74,5.0563]
[1739580627301,13.01828118,197.79,197.73,7.96308118]
[1739580627501,0.03555493,197.78,197.75,0.03709001]
[1739580628099,0.03555493,197.78,197.77,5.0556]
[1739580631106,0.03555493,197.78,197.76,5.0558]
[1739580631501,0.03555493,197.78,197.75,8.00017119]
[1739580631701,0.03555493,197.78,197.77,5.0556]
[1739580632404,0.03555493,197.78,197.75,0.03709001]
[1739580633204,7.96308118,197.77,197.75,0.03709001]
[1739580633505,5.0558,197.76,197.75,0.03709001]
[1739580633709,7.96308118,197.77,197.75,0.03709001]
[1739580634010,5.0558,197.76,197.75,0.03709001]
[1739580634703,7.96308118,197.77,197.75,0.03709001]
[1739580635605,0.03555493,197.78,197.75,0.03709001]
[1739580636207,0.03555493,197.78,197.77,5.0556]
[1739580637511,0.03555493,197.78,197.77,13.01868118]
[1739580638013,0.03555493,197.78,197.77,5.0556]
[1739580639913,0.03555493,197.78,197.75,8.00017119]
[1739580640116,0.03555493,197.78,197.76,5.0558]
[1739580641316,0.03555493,197.78,197.75,0.03709001]
[1739580641518,7.96308118,197.77,197.75,0.03709001]
[1739580641914,5.0558,197.76,197.75,0.03709001]
[1739580642510,0.03555493,197.78,197.75,0.03709001]
[1739580643214,0.03555493,197.78,197.76,5.0556]
[1739580643615,0.03555493,197.78,197.75,0.03709001]
[1739580644616,0.03555493,197.78,197.75,8.00017119]
[1739580644817,0.03555493,197.78,197.76,5.0558]
[1739580646924,0.03555493,197.78,197.75,8.00017119]
[1739580647124,0.03555493,197.78,197.75,0.03709001]
[1739580647525,0.03555493,197.78,197.76,5.0558]
[1739580647725,0.03555493,197.78,197.75,0.03709001]
[1739580648322,5.0558,197.76,197.75,0.03709001]
[1739580649431,0.03555493,197.78,197.76,5.0558]
[1739580649623,0.03555493,197.78,197.75,0.03709001]
[1739580650328,5.09095493,197.78,197.75,0.03709001]
[1739580650624,5.09095493,197.78,197.75,5.09319001]
[1739580651822,0.03555493,197.78,197.75,5.09319001]
[1739580652020,0.03555493,197.78,197.76,5.0556]
[1739580653724,0.03555493,197.78,197.77,5.0556]
[1739580658731,5.0556,197.77,197.75,0.03709001]
[1739580659627,5.09095493,197.78,197.75,0.03709001]
[1739580660832,5.0558,197.76,197.75,0.03709001]
[1739580663027,7.96308118,197.77,197.75,0.03709001]
[1739580663529,0.03555493,197.78,197.75,0.03709001]
[1739580664636,0.03555493,197.78,197.75,8.00017119]
[1739580664937,0.03555493,197.78,197.77,5.0556]
[1739580665839,0.03555493,197.78,197.77,13.01868118]
[1739580669242,9.60048118,197.87,197.77,7.96308118]
[1739580669543,9.60048118,197.87,197.82,5.0541]
[1739580669840,14.65358118,197.87,197.82,5.0541]
[1739580670439,0.03479494,197.86,197.83,5.09197163]
[1739580673542,0.03479494,197.86,197.85,5.0535]
[1739580678949,0.03479494,197.86,197.83,0.03797163]
[1739580679349,5.08829494,197.86,197.83,0.03797163]
[1739580679548,0.03479494,197.86,197.83,0.03797163]
[1739580680048,5.0538,197.85,197.83,0.03797163]
[1739580680349,0.03479494,197.86,197.83,0.03797163]
[1739580680549,0.03479494,197.86,197.85,5.0535]
[1739580685953,0.03479494,197.86,197.84,7.96308118]
[1739580687151,0.03479494,197.86,197.85,5.0535]
[1739580688453,0.03479494,197.86,197.84,5.0537]
[1739580689355,0.03479494,197.86,197.83,0.03797163]
[1739580690360,0.03479494,197.86,197.85,5.0535]
[1739580692663,9.494e-05,197.86,197.85,5.0535]
[1739580693662,9.494e-05,197.86,197.85,6.5745]
[1739580697263,5.051,197.95,197.9,5.0522]
[1739580697861,5.051,197.95,197.89,13.01548118]
[1739580698066,5.0513,197.94,197.89,13.01548118]
[1739580698361,0.03309332,197.94,197.9,0.03642374]
[1739580698766,5.0515,197.93,197.9,0.03642374]
[1739580698968,0.03309332,197.94,197.9,0.03642374]
[1739580699357,5.0515,197.93,197.9,0.03642374]
[1739580699766,0.03309332,197.94,197.9,0.03642374]
[1739580701068,5.052,197.91,197.9,0.03642374]
[1739580701268,0.03309332,197.94,197.9,0.03642374]
[1739580701769,5.052,197.91,197.9,0.03642374]
[1739580702163,5.0518,197.92,197.9,0.03642374]
[1739580702463,7.96308118,197.93,197.9,0.03642374]
[1739580702663,5.0515,197.93,197.9,0.03642374]
[1739580703065,0.03309332,197.94,197.9,5.08862374]
[1739580704167,5.08449332,197.94,197.9,5.08862374]
[1739580705168,0.03309332,197.94,197.9,0.03642374]
[1739580705664,7.96308118,197.93,197.9,0.03642374]
[1739580705864,5.052,197.91,197.9,0.03642374]
[1739580708968,7.96308118,197.93,197.9,0.03642374]
[1739580709170,5.0518,197.92,197.9,0.03642374]
[1739580709374,0.03309332,197.94,197.9,0.03642374]
[1739580710876,5.08439332,197.94,197.9,5.08852374]
[1739580712174,0.03309332,197.94,197.9,5.08852374]
[1739580712375,5.0515,197.93,197.9,5.08852374]
[1739580713076,5.0518,197.92,197.9,0.03642374]
[1739580714079,7.96308118,197.93,197.9,0.03642374]
[1739580714080,13.01458118,197.93,197.9,0.03642374]
[1739580715079,13.01458118,197.93,197.9,5.08872374]
[1739580715680,5.0515,197.93,197.9,5.08872374]
[1739580715978,5.0515,197.93,197.9,0.03642374]
[1739580716579,0.03309332,197.94,197.93,5.0515]
[1739580717982,0.03309332,197.94,197.93,13.01458118]
[1739580718286,7.96308118,198.01,197.96,5.0505]
[1739580718478,5.0492,198.02,197.95,7.96308118]
[1739580718678,10.69599045,198.03,197.97,7.96308118]
[1739580718877,10.69599045,198.03,197.99,5.0498]
[1739580719083,136.67299684,198.04,197.99,5.0498]
[1739580719282,0.0339467,198.03,197.99,5.08223964]
[1739580720777,0.0339467,198.03,197.99,0.03243964]
[1739580721374,0.0339467,198.03,197.99,5.08243964]
[1739580722084,0.0339467,198.03,197.99,0.03243964]
[1739580722284,7.99702788,198.03,197.99,0.03243964]
[1739580722782,5.0494,198.02,197.99,0.03243964]
[1739580723583,7.99702788,198.03,197.99,0.03243964]
[1739580723786,13.04592788,198.03,197.99,0.03243964]
[1739580724681,0.0339467,198.03,197.99,0.03243964]
[1739580725486,5.0492,198.02,197.99,0.03243964]
[1739580725682,0.0339467,198.03,197.99,0.03243964]
[1739580726086,5.0829467,198.03,198.0,5.0497]
[1739580726278,0.0339467,198.03,198.0,5.0497]
[1739580726483,0.0339467,198.03,197.99,0.03243964]
[1739580726884,0.0339467,198.03,198.01,5.0492]
[1739580730090,0.0339467,198.03,197.99,7.99552082]
[1739580730985,0.0339467,198.03,198.02,5.0492]
[1739580733090,0.0339467,198.03,198.01,5.0494]
[1739580733393,0.0339467,198.03,197.99,7.99552082]
[1739580734590,0.0339467,198.03,198.02,5.0492]
[1739580736788,3.0822,198.12,198.01,7.96308118]
[1739580736789,22.45138455,198.15,198.08,5.0476]
[1739580737097,22.45138455,198.15,198.0,3.1492]
[1739580737098,5.0461,198.15,198.09,7.96308118]
[1739580737290,22.45138455,198.17,198.11,7.96308118]
[1739580737490,18.65907163,198.17,198.12,5.0466]
[1739580737995,203.93621056,198.16,198.12,5.07874338]
[1739580738391,203.93621056,198.16,198.12,0.03214338]
[1739580738693,5.0461,198.15,198.12,0.03214338]
[1739580739589,5.0461,198.14,198.12,0.03214338]
[1739580739789,0.03804127,198.16,198.12,0.03214338]
[1739580739986,7.96308118,198.13,198.12,0.03214338]
[1739580741089,13.00948118,198.13,198.12,0.03214338]
[1739580741993,5.048,198.07,198.03,7.96308118]
[1739580742595,5.0484,198.06,198.03,7.96308118]
[1739580743096,5.0833463,198.06,198.03,7.99683664]
[1739580743591,0.0349463,198.06,198.03,0.03375546]
[1739580743796,5.0484,198.05,198.03,0.03375546]
[1739580743987,0.0349463,198.06,198.03,0.03375546]
[1739580744596,5.0485,198.05,198.03,0.03375546]
[1739580745601,0.0349463,198.06,198.03,0.03375546]
[1739580745803,5.0487,198.04,198.03,0.03375546]
[1739580747405,0.0349463,198.06,198.03,0.03375546]
[1739580747700,5.0484,198.05,198.03,0.03375546]
[1739580748507,0.0349463,198.06,198.03,0.03375546]
[1739580748708,5.0487,198.04,198.03,0.03375546]
[1739580749507,0.0349463,198.06,198.03,0.03375546]
[1739580749709,5.0485,198.05,198.03,0.03375546]
[1739580753109,0.0349463,198.06,198.03,0.03375546]
[1739580755111,5.0487,198.04,198.03,0.03375546]
[1739580757407,7.96308118,198.04,197.95,9.51078118]
[1739580757712,7.96308118,198.02,197.95,7.96308118]
[1739580757913,7.96308118,198.0,197.93,7.96308118]
[1739580758119,5.051,197.95,197.93,7.96308118]
[1739580758311,7.96308118,198.0,197.93,7.96308118]
[1739580758609,5.0507,197.96,197.95,0.03475321]
[1739580759108,0.03525396,197.98,197.95,0.03475321]
[1739580760109,5.0505,197.97,197.95,0.03475321]
[1739580760613,0.03525396,197.98,197.95,0.03475321]
[1739580760813,5.08555396,197.98,197.95,0.03475321]
[1739580761011,0.03525396,197.98,197.95,0.03475321]
[1739580761316,0.03525396,197.98,197.97,13.01358118]
[1739580768116,3.1712,198.1,198.02,5.049]
[1739580768117,7.96308118,198.08,198.02,5.049]
[1739580768316,11.13428118,198.1,198.03,7.96308118]
[1739580768518,9.59978118,198.1,198.03,7.96308118]
[1739580768820,7.96308118,198.08,198.01,7.96308118]
[1739580769210,0.0385035,198.06,198.03,0.03731638]
[1739580771815,5.0867035,198.06,198.03,0.03731638]
[1739580772113,8.00158468,198.06,198.03,0.03731638]
[1739580772318,13.01178118,198.04,198.03,0.03731638]
[1739580773015,5.0487,198.04,198.03,0.03731638]
[1739580776114,8.00158468,198.06,198.03,0.03731638]
[1739580776316,0.0385035,198.06,198.03,0.03731638]
[1739580776621,0.0385035,198.06,198.03,5.08611638]
[1739580779122,5.0867035,198.06,198.03,0.03731638]
[1739580779621,0.0385035,198.06,198.03,0.03731638]
[1739580779823,0.0385035,198.06,198.03,5.08621638]
[1739580780518,5.0867035,198.06,198.03,5.08621638]
[1739580780723,5.0867035,198.06,198.03,0.03731638]
[1739580781720,0.0385035,198.06,198.03,0.03731638]
[1739580782126,5.0869035,198.06,198.03,0.03731638]
[1739580783723,0.0385035,198.06,198.03,0.03731638]
[1739580784023,5.0485,198.05,198.03,0.03731638]
[1739580785222,5.0487,198.04,198.03,0.03731638]
[1739580789927,13.01178118,198.04,198.03,0.03731638]
[1739580790127,7.96308118,198.04,197.93,7.96308118]
[1739580790329,7.96308118,197.99,197.91,9.49188118]
[1739580791424,0.03816544,197.97,197.93,0.03529763]
[1739580791624,5.08866544,197.97,197.93,5.08659763]
[1739580792123,0.03816544,197.97,197.93,5.08659763]
[1739580793931,5.0508,197.96,197.93,0.03529763]
[1739580794132,8.00124662,197.97,197.93,0.03529763]
[1739580794331,0.03816544,197.97,197.93,0.03529763]
[1739580794927,0.03816544,197.97,197.93,7.99837881]
[1739580795733,0.03816544,197.97,197.96,5.0507]
[1739580795932,0.03816544,197.97,197.93,7.99837881]
[1739580796130,0.03816544,197.97,197.93,0.03529763]
[1739580796334,5.0511,197.95,197.93,0.03529763]
[1739580796831,5.0507,197.96,197.93,0.03529763]
[1739580798133,0.03816544,197.97,197.93,7.99837881]
[1739580798428,0.03816544,197.97,197.96,5.0507]
[1739580803340,0.03816544,197.97,197.95,5.0509]
[1739580803534,0.03816544,197.97,197.93,7.99837881]
[1739580803839,0.03816544,197.97,197.93,0.03529763]
[1739580804031,8.00124662,197.97,197.93,0.03529763]
[1739580804636,5.0508,197.96,197.93,0.03529763]
[1739580804937,8.00124662,197.97,197.93,0.03529763]
[1739580805637,13.05174662,197.97,197.93,5.08669763]
[1739580806635,0.03816544,197.97,197.94,5.0512]
[1739580807236,0.03816544,197.97,197.93,0.03529763]
[1739580807542,8.00124662,197.97,197.93,0.03529763]
[1739580808041,7.96308118,197.95,197.93,0.03529763]
[1739580809231,5.0512,197.94,197.93,0.03529763]
[1739580813236,7.96308118,197.95,197.83,7.96308118]
[1739580813540,5.0525,197.9,197.83,7.96308118]
[1739580813741,7.96308118,197.89,197.84,5.0537]
[1739580813939,13.01558118,197.89,197.84,5.0537]
[1739580814335,7.96308118,197.89,197.83,5.054]
[1739580814532,0.03734607,197.88,197.85,0.0358899]
[1739580814838,7.96308118,197.87,197.85,0.0358899]
[1739580816239,5.0533,197.86,197.85,0.0358899]
[1739580817242,0.03734607,197.88,197.85,0.0358899]
[1739580820347,0.03734607,197.88,197.87,5.053]
[1739580820547,0.03734607,197.88,197.85,0.0358899]
[1739580822545,0.03734607,197.88,197.87,5.053]
[1739580823641,0.03734607,197.88,197.87,13.01608118]
[1739580825343,13.01428118,197.95,197.87,7.96308118]
[1739580825642,13.01428118,197.95,197.91,5.0518]
[1739580826541,13.0491239,197.95,197.91,5.08950666]
[1739580827745,5.0513,197.94,197.91,0.03770666]
[1739580827947,7.9979239,197.95,197.91,0.03770666]
[1739580828545,5.0513,197.94,197.91,0.03770666]
[1739580830044,5.0515,197.93,197.91,0.03770666]
[1739580830548,7.96308118,197.93,197.91,0.03770666]
[1739580830745,5.0517,197.92,197.91,0.03770666]
[1739580831651,7.96308118,197.93,197.79,7.96308118]
[1739580831950,7.96308118,197.86,197.81,5.0544]
[1739580832452,5.0538,197.84,197.8,5.0548]
[1739580832650,5.0538,197.84,197.82,0.0324917]
[1739580833551,5.08896481,197.85,197.82,0.0324917]
[1739580833745,0.03536481,197.85,197.82,0.0324917]
[1739580833952,7.96308118,197.84,197.82,0.0324917]
[1739580834951,5.054,197.83,197.82,0.0324917]
[1739580835744,7.96308118,197.84,197.75,5.0559]
[1739580835948,5.0548,197.8,197.75,5.0559]
[1739580836847,0.03486518,197.79,197.76,0.0331515]
[1739580837953,7.99794636,197.79,197.76,0.0331515]
[1739580838648,5.0554,197.78,197.76,0.0331515]
[1739580839448,13.05314636,197.79,197.76,0.0331515]
[1739580839649,7.99794636,197.79,197.76,0.0331515]
[1739580840253,13.05304636,197.79,197.76,0.0331515]
[1739580840452,7.99794636,197.79,197.76,0.0331515]
[1739580840854,5.0554,197.78,197.76,0.0331515]
[1739580841655,7.96308118,197.77,197.76,0.0331515]
[1739580842452,13.01868118,197.77,197.76,0.0331515]
[1739580842655,13.01868118,197.77,197.67,7.96308118]
[1739580842656,7.96308118,197.77,197.67,7.96308118]
[1739580842856,7.96308118,197.74,197.7,5.0572]
[1739580843355,7.96308118,197.74,197.65,7.96308118]
[1739580843953,0.03590125,197.71,197.69,5.0576]
[1739580844153,0.03590125,197.71,197.68,0.03281126]
[1739580845252,0.03590125,197.71,197.7,5.0574]
[1739580847862,13.01848118,197.78,197.74,5.0562]
[1739580848959,13.05215555,197.78,197.74,5.09115284]
[1739580849667,7.99675555,197.78,197.74,0.03495284]
[1739580849969,7.99675555,197.78,197.76,5.0557]
[1739580850368,0.03367437,197.78,197.77,5.0556]
[1739580850970,0.03367437,197.78,197.76,5.0558]
[1739580851569,0.03367437,197.78,197.74,0.03495284]
[1739580851767,0.03367437,197.78,197.77,5.0556]
[1739580851968,0.03367437,197.78,197.74,0.03495284]
[1739580852372,0.03367437,197.78,197.77,5.0556]
[1739580852971,1.5813,197.86,197.82,5.0542]
[1739580852972,7.96308118,197.84,197.82,5.0542]
[1739580853471,7.96308118,197.84,197.82,5.0543]
[1739580855066,7.96308118,197.84,197.81,0.03607487]
[1739580855271,7.96308118,197.84,197.81,5.09057487]
[1739580855669,5.08685723,197.85,197.81,5.09057487]
[1739580859677,0.03335723,197.85,197.81,0.03607487]
[1739580859881,5.0538,197.84,197.81,0.03607487]
[1739580860176,0.03335723,197.85,197.81,0.03607487]
[1739580860477,5.0543,197.82,197.81,0.03607487]
[1739580866379,17.47800931,197.82,197.81,0.03607487]
[1739580866579,12.42370931,197.82,197.74,5.0561]
[1739580867075,5.0553,197.78,197.74,5.0561]
[1739580867283,12.42370931,197.82,197.69,1.6361]
[1739580867669,0.03609213,197.77,197.74,0.03307992]
[1739580867873,0.03609213,197.77,197.76,5.0558]
[1739580873982,5.0536,197.85,197.81,5.0543]
[1739580874183,1.5238,197.9,197.77,12.42370931]
[1739580874385,1.5238,197.9,197.78,1.4884]
[1739580874787,5.0531,197.87,197.83,5.0539]
[1739580874979,5.0531,197.87,197.78,1.4884]
[1739580875275,5.0895647,197.87,197.83,0.03248253]
[1739580875480,5.0895647,197.87,197.83,5.08628253]
[1739580875680,5.0895647,197.87,197.83,0.03248253]
[1739580876586,0.0364647,197.87,197.83,0.03248253]
[1739580876883,0.0364647,197.87,197.83,5.08628253]
[1739580877577,0.0364647,197.87,197.84,5.0536]
[1739580878687,0.0364647,197.87,197.83,5.08648253]
[1739580879786,0.0364647,197.87,197.83,0.03248253]
[1739580880186,13.00201204,197.86,197.83,0.03248253]
[1739580881789,5.0535,197.86,197.83,5.08648253]
[1739580881993,5.0895647,197.87,197.83,5.08648253]
[1739580883287,5.0895647,197.87,197.84,5.0537]
[1739580886488,5.0895647,197.87,197.83,5.08648253]
[1739580886687,5.0533,197.86,197.83,5.08648253]
[1739580890392,0.0364647,197.87,197.86,5.0533]
[1739580892683,0.0364647,197.87,197.84,5.0537]
[1739580893694,0.0364647,197.87,197.83,7.98099457]
[1739580893893,0.0364647,197.87,197.85,5.0535]
[1739580894793,0.0364647,197.87,197.86,5.0533]
[1739580895497,0.0364647,197.87,197.85,5.0535]
[1739580900896,0.0364647,197.87,197.84,5.0537]
[1739580901595,0.0364647,197.87,197.86,5.0533]
[1739580901800,7.94851204,197.98,197.85,7.94851204]
[1739580902097,7.94851204,197.98,197.9,7.94851204]
[1739580902297,5.0507,197.97,197.93,5.0515]
[1739580902498,7.94851204,197.98,197.93,5.0515]
[1739580902799,7.94851204,197.98,197.9,7.94851204]
[1739580902997,0.03454208,197.97,197.94,0.03530612]
[1739580903199,5.08524208,197.97,197.94,0.03530612]
[1739580903898,0.03454208,197.97,197.94,0.03530612]
[1739580904095,0.03454208,197.97,197.96,12.99921204]
[1739580904299,10.63826516,198.0,197.98,7.94851204]
[1739580904497,139.86912839,198.04,197.98,7.94851204]
[1739580904498,150.50739355,198.04,197.98,7.94851204]
[1739580904691,150.50739355,198.04,197.99,5.05]
[1739580905297,0.0342209,198.03,198.0,0.036683]
[1739580905495,0.0342209,198.03,198.0,5.086383]
[1739580905901,0.0342209,198.03,198.0,7.98519504]
[1739580906101,137.41032839,198.04,198.02,7.94851204]
[1739580906294,114.28316129,198.04,198.02,7.94851204]